Workbook

Sheet 請求書提出方法
B2: お取引先各位
AC3: 株式会社 堀内組
A5: 当社宛請求書のご提出について
B7: 当社に対する、材料・レンタル代又は工事代等の請求の方法については、下記の要領を熟読の上、
B8: ご提出の程、宜しくお願い申し上げます。
B10: 【基 本 項 目】
B11: ①材料・レンタル代及び工事代金等のご請求は、当社専用請求書様式（Excel版）をご使用下さい。
B13: ②請求書は、現場毎に発行して下さい。
B15: ③請求書は、月末日締めで翌月５日までに、各現場又は本社までご提出下さい。
B16: ※ 提出期限を過ぎた場合は、翌月支払いになることがあります。
B17: ※ 暦の関係等で、提出期限に変更がある場合には、現場担当よりご連絡致します。
B19: 【請求書の発行】
B20: 当社専用請求書様式（Eｘｃｅｌ版）を、当社ホームページよりダウンロードして下さい。
B21: ★ ホームページアドレス https://horiuchi-g.co.jp/
B22: トップページ → 企業情報 → 各種資料ダウンロード → 請求書関係
B23: [重要] マクロを設定していますのでブロック解除が必要です。（ダウンロード方法参照）
B24: 請求書は、取引先用、提出用を作成下さい。
B25: お取引先様控えとして、取引先用を保管頂き、提出用１枚をご提出下さい。
B27: 【請求書の記入上の注意】
B28: ①請求書の『外注請求分』又は『一般請求分』のチェックをご記入下さい。
B29: 外注請求分で、複数注文書がある場合は、別々に請求書を発行下さい。
B30: なお、『外注請求分』と『一般請求分』と両方請求される場合は、別々に請求書を発行下さい。
B32: ②取引先コード（７桁）をご記入下さい。（頭は０（ゼロ））
B33: 外注請求の場合は、注文書の左上に記載があります。
B34: 新規登録業者様は、「協力業者登録票」を提出し、取引先コードを取得する必要があります。
B35: また、登録内容に変更があった場合は、「協力業者登録票」を再度ご提出下さい。
B36: 取引先コードがご不明な場合は、各現場担当にお尋ね下さい。
B38: ③お取引先様の住所、会社名、代表者名、電話番号をご記入下さい。
B39: ゴム版による押印でも可能です。
B41: ④適格請求書発行事業所 登録状況のチェック及び登録番号をご記入下さい。
B43: ⑤銀行振込口座の項目については、漏れなくご記入下さい。
B45: ⑥契約事項をご記入下さい。（外注請求の場合）
B46: 注文№（１２桁）、支払条件、契約金額は、注文書内に記載があります。
B48: ⑦工事コード（１０桁）及び工事名をご記入下さい。
B49: 外注請求の場合は、注文書内に記載があります。
B50: 工事コード及び工事名がご不明な場合は、各現場担当にお尋ね下さい。
B51: 本社又は営業所の場合は、工事コードは空白とし、工事名は、「本社」又は「営業所名」をご記入下さい。
B53: ⑧請求内訳（摘要・税区分・数量・単価・金額）をご記入下さい。
B54: 外注請求の場合は、「第○回 出来高」とご記入も可能です。
B55: 外注請求（出来高払）に関しては、各現場担当と打合せ・確認の上、ご請求金額をご記入下さい。
B56: 一般請求の場合は、摘要欄に品名をご記入下さい。
B57: お取引先様専用の明細書がある場合は、「別紙明細書の通り」とご記入することも可能です。
B58: 但し、複数の消費税区分に分かれる場合は、行を分けてご記入下さい。（記入見本参照）
B59: 消費税区分は、「税区分」欄に、非課税は「非」、８％は「※」をご記入下さい。（１０％は入力無し）
B61: ⑨本請求書様式には、計算式を組み込んでおりますので、税区分毎に自動で計算します。
B62: 行や列の挿入や削除、行高や列幅の変更を行わないで下さい。
B64: ⑩提出用請求書には、貴社の押印をお願いします。
B66: ⑪請求書の作成に際し、ご不明な点は各現場担当又は本社管理部までご連絡下さい。

Sheet ダウンロード方法
A1: 専用請求書のダウンロード方法

Sheet 記入見本
A2: 【取引先控】
AS3: TRUE | BB3: TRUE
AF4: 請 求 書 | AS4: （ | AT4: FALSE | AV4: 外注請求分 | BD4: 一般請求分 | BJ4: ） | BM4: 2023 | BR4: 年 | BT4: 4 | BV4: 月 | BX4: 30 | BZ4: 日
BB5: TRUE | BS5: TRUE
A6: 株式会社堀内組 | Q6: 御中 | U6: 取引先 コード | Z6: 0 | AA6: 1 | AB6: 2 | AC6: 3 | AD6: 4 | AE6: 5 | AF6: 6 | AV6: 適格請求書 発行事業所 | BD6: 登録済（下記に登録番号を記入） | BU6: 未登録
U7: 郵便番号 | Z7: 1 | AA7: 2 | AB7: 3 | AC7: － | AD7: 4 | AE7: 5 | AF7: 6 | AG7: 7 | AV7: 登録番号 | BB7: Ｔ | BC7: 1 | BD7: － | BE7: 2 | BF7: 3 | BG7: 4 | BH7: 5 | BI7: － | BJ7: 6 | BK7: 7 | BL7: 8 | BM7: 9 | BN7: － | BO7: 0 | BP7: 1 | BQ7: 2 | BR7: 3
A8: 下記のとおり、御請求申し上げます。 | U8: 住所 | Z8: ○○県○○市○○町１２３ | AV8: 銀 行 名 | BB8: ○○ | BI8: 銀行 | BL8: 支 店 名 | BR8: ○○ | BY8: 支店
A9: 税抜金額 （ａ） | H9: =L19 -> 10000000 | U9: 会社名 | Z9: 株式会社 ○○建設 | AV9: 預金種別 | BD9: 普通 | BI9: 当座 | BL9: 口座番号 | BR9: １２３４５６７
A10: 消費税額 （ｂ） | H10: =L24 -> 1000000 | U10: 代表者名 | Z10: 代表取締役 ○○ △△ | AV10: （フリガナ） 口座名義 | BB10: カ）マルマルケンセツ
A11: [税込金額] | H11: =SUM(H9:S10) -> 11000000 | U11: 電話番号 | Z11: ０１２０—１２—３４５６ | BB11: （株）○○建設
BB12: TRUE | BG12: TRUE
A13: 契約事項 | C13: 注 文 № | H13: 2 | I13: 0 | J13: 2 | K13: 3 | L13: 0 | M13: 1 | N13: 0 | O13: 0 | P13: 0 | Q13: 0 | R13: 0 | S13: 1 | U13: 工事コード | Z13: 1 | AA13: 2 | AB13: 3 | AC13: 4 | AD13: 5 | AE13: 6 | AF13: 7 | AG13: 8 | AH13: 9 | AI13: 0 | AJ13: 工事名 | AP13: ○○建設工事
C14: 支 払 条 件 | H14: 現金 | K14: 50 | M14: ％ | N14: 手形 | Q14: 50 | S14: ％ | U14: 日付 | W14: 摘 要 | AM14: 税区分 | AP14: 数 量 | AT14: 単 位 | AW14: 単 価 | BC14: 税抜金額 | BK14: 工種コード | BO14: 要素コード | BU14: 備 考
C15: 現契約金額 | H15: 100000000 | U15: 4 | V15: 30 | W15: 第２回 出来高 | AP15: 1 | AT15: 式 | BC15: 10000000
C16: 増 減 金 額 | H16: 10000000 | W16: ↑ ※出来高請求の場合
C17: 合 計 | H17: =SUM(H15:S16) -> 110000000
A19: 【税抜金額合計】 (a) | L19: =SUM(L20:S22) -> 10000000
C20: 非課税対象 | L20: 0
C21: ※ ８％対象 | L21: 0
C22: １０％対象 | L22: 10000000
A24: 【消費税金額合計】(b) | L24: =SUM(L25:S27) -> 1000000
C25: 非 課 税 | L25: 0
C26: ※８％対象消費税 | L26: =ROUND(L21*0.08,0) -> 0
C27: １０％対象消費税 | L27: =ROUND(L22*0.1,0) -> 1000000 | U27: 税抜金額合計(a) | BC27: =IF(BC15="","",SUM(BC15:BJ26)) -> 10000000 | BK27: ※ 軽減税率対象項目
A29: 【取引先控】
AS30: TRUE | BB30: TRUE
AF31: 請 求 書 | AS31: （ | AT31: FALSE | AV31: 外注請求分 | BD31: 一般請求分 | BJ31: ） | BM31: 2023 | BR31: 年 | BT31: 4 | BV31: 月 | BX31: 30 | BZ31: 日
BB32: TRUE | BS32: TRUE
A33: 株式会社堀内組 | Q33: 御中 | U33: 取引先 コード | Z33: 0 | AA33: 1 | AB33: 2 | AC33: 3 | AD33: 4 | AE33: 5 | AF33: 6 | AV33: 適格請求書 発行事業所 | BD33: 登録済（下記に登録番号を記入） | BU33: 未登録
U34: 郵便番号 | Z34: 1 | AA34: 2 | AB34: 3 | AC34: － | AD34: 4 | AE34: 5 | AF34: 6 | AG34: 7 | AV34: 登録番号 | BB34: Ｔ | BC34: 1 | BD34: － | BE34: 2 | BF34: 3 | BG34: 4 | BH34: 5 | BI34: － | BJ34: 6 | BK34: 7 | BL34: 8 | BM34: 9 | BN34: － | BO34: 0 | BP34: 1 | BQ34: 2 | BR34: 3
A35: 下記のとおり、御請求申し上げます。 | U35: 住所 | Z35: ○○県○○市○○町１２３ | AV35: 銀 行 名 | BB35: ○○ | BI35: 銀行 | BL35: 支 店 名 | BR35: ○○ | BY35: 支店
A36: 税抜金額 （ａ） | H36: =L46 -> 3000000 | U36: 会社名 | Z36: 株式会社 ○○建設 | AV36: 預金種別 | BD36: 普通 | BI36: 当座 | BL36: 口座番号 | BR36: １２３４５６７
A37: 消費税額 （ｂ） | H37: =L51 -> 180000 | U37: 代表者名 | Z37: 代表取締役 ○○ △△ | AV37: （フリガナ） 口座名義 | BB37: カ）マルマルケンセツ
A38: [税込金額] | H38: =SUM(H36:S37) -> 3180000 | U38: 電話番号 | Z38: ０１２０—１２—３４５６ | BB38: （株）○○建設
BB39: TRUE | BG39: TRUE
A40: 契約事項 | C40: 注 文 № | U40: 工事コード | Z40: 1 | AA40: 2 | AB40: 3 | AC40: 4 | AD40: 5 | AE40: 6 | AF40: 7 | AG40: 8 | AH40: 9 | AI40: 0 | AJ40: 工事名 | AP40: ○○建設工事
C41: 支 払 条 件 | H41: 現金 | M41: ％ | N41: 手形 | S41: ％ | U41: 日付 | W41: 摘 要 | AM41: 税区分 | AP41: 数 量 | AT41: 単 位 | AW41: 単 価 | BC41: 税抜金額 | BK41: 工種コード | BO41: 要素コード | BU41: 備 考
C42: 現契約金額 | U42: 4 | V42: 30 | W42: 別紙明細書の通り | AM42: 非 | AP42: 1 | AT42: 式 | BC42: 1000000
C43: 増 減 金 額 | W43: 〃 | AM43: ※ | AP43: 1 | AT43: 式 | BC43: 1000000
C44: 合 計 | W44: 〃 | AP44: 1 | AT44: 式 | BC44: 1000000
W45: ↑ ※明細書を添付する場合
A46: 【税抜金額合計】 (a) | L46: =SUM(L47:S49) -> 3000000
C47: 非課税対象 | L47: 1000000
C48: ※ ８％対象 | L48: 1000000
C49: １０％対象 | L49: 1000000
A51: 【消費税金額合計】(b) | L51: =SUM(L52:S54) -> 180000
C52: 非 課 税 | L52: 0
C53: ※８％対象消費税 | L53: =ROUND(L48*0.08,0) -> 80000
C54: １０％対象消費税 | L54: =ROUND(L49*0.1,0) -> 100000 | U54: 税抜金額合計(a) | BC54: =IF(BC42="","",SUM(BC42:BJ53)) -> 3000000 | BK54: ※ 軽減税率対象項目

Sheet 協力業者発行請求書P1
A2: 【取引先控】 | CB2: 【取引先控】
AS3: FALSE | BB3: FALSE | DT3: TRUE | EC3: TRUE
AF4: 請 求 書 | AS4: （ | AT4: FALSE | AV4: 外注請求分 | BD4: 一般請求分 | BJ4: ） | BR4: 年 | BV4: 月 | BZ4: 日 | DG4: 請 求 書 | DT4: （ | DU4: FALSE | DW4: 外注請求分 | EE4: 一般請求分 | EK4: ） | EN4: 2023 | ES4: 年 | EU4: 4 | EW4: 月 | EY4: 30 | FA4: 日
BB5: FALSE | BS5: FALSE | EC5: TRUE | ET5: TRUE
A6: 株式会社堀内組 | Q6: 御中 | U6: 取引先 コード | Z6: 0 | AV6: 適格請求書 発行事業所 | BD6: 登録済（下記に登録番号を記入） | BU6: 未登録 | CB6: 株式会社堀内組 | CR6: 御中 | CV6: 取引先 コード | DA6: 0 | DB6: 1 | DC6: 2 | DD6: 3 | DE6: 4 | DF6: 5 | DG6: 6 | DW6: 適格請求書 発行事業所 | EE6: 登録済（下記に登録番号を記入） | EV6: 未登録
U7: 郵便番号 | AC7: － | AV7: 登録番号 | BB7: Ｔ | BD7: － | BI7: － | BN7: － | CV7: 郵便番号 | DA7: 1 | DB7: 2 | DC7: 3 | DD7: － | DE7: 4 | DF7: 5 | DG7: 6 | DH7: 7 | DW7: 登録番号 | EC7: Ｔ | ED7: 1 | EE7: － | EF7: 2 | EG7: 3 | EH7: 4 | EI7: 5 | EJ7: － | EK7: 6 | EL7: 7 | EM7: 8 | EN7: 9 | EO7: － | EP7: 0 | EQ7: 1 | ER7: 2 | ES7: 3
A8: 下記のとおり、御請求申し上げます。 | U8: 住所 | AV8: 銀 行 名 | BI8: 銀行 | BL8: 支 店 名 | BY8: 支店 | CB8: 下記のとおり、御請求申し上げます。 | CV8: 住所 | DA8: ○○県○○市○○町１２３ | DW8: 銀 行 名 | EC8: ○○ | EJ8: 銀行 | EM8: 支 店 名 | ES8: ○○ | EZ8: 支店
A9: 税抜金額 （ａ） | H9: =L19 -> 0 | U9: 会社名 | AV9: 預金種別 | BD9: 普通 | BI9: 当座 | BL9: 口座番号 | CB9: 税抜金額 （ａ） | CI9: =CM19 -> 10000000 | CV9: 会社名 | DA9: 株式会社 ○○建設 | DW9: 預金種別 | EE9: 普通 | EJ9: 当座 | EM9: 口座番号 | ES9: １２３４５６７
A10: 消費税額 （ｂ） | H10: =L24 -> 0 | U10: 代表者名 | AV10: （フリガナ） 口座名義 | CB10: 消費税額 （ｂ） | CI10: =CM24 -> 1000000 | CV10: 代表者名 | DA10: 代表取締役 ○○ △△ | DW10: （フリガナ） 口座名義 | EC10: カ）マルマルケンセツ
A11: [税込金額] | H11: =SUM(H9:S10) -> 0 | U11: 電話番号 | CB11: [税込金額] | CI11: =SUM(CI9:CT10) -> 11000000 | CV11: 電話番号 | DA11: ０１２０—１２—３４５６ | EC11: （株）○○建設
BB12: FALSE | BG12: FALSE | EC12: TRUE | EH12: TRUE
A13: 契約事項 | C13: 注 文 № | U13: 工事コード | AJ13: 工事名 | CB13: 契約事項 | CD13: 注 文 № | CI13: 2 | CJ13: 0 | CK13: 2 | CL13: 3 | CM13: 0 | CN13: 1 | CO13: 0 | CP13: 0 | CQ13: 0 | CR13: 0 | CS13: 0 | CT13: 1 | CV13: 工事コード | DA13: 1 | DB13: 2 | DC13: 3 | DD13: 4 | DE13: 5 | DF13: 6 | DG13: 7 | DH13: 8 | DI13: 9 | DJ13: 0 | DK13: 工事名 | DQ13: ○○建設工事
C14: 支 払 条 件 | H14: 現金 | M14: ％ | N14: 手形 | S14: ％ | U14: 日付 | W14: 摘 要 | AM14: 税区分 | AP14: 数 量 | AT14: 単 位 | AW14: 単 価 | BC14: 税抜金額 | BK14: 工種コード | BO14: 要素コード | BU14: 備 考 | CD14: 支 払 条 件 | CI14: 現金 | CL14: 50 | CN14: ％ | CO14: 手形 | CR14: 50 | CT14: ％ | CV14: 日付 | CX14: 摘 要 | DN14: 税区分 | DQ14: 数 量 | DU14: 単 位 | DX14: 単 価 | ED14: 税抜金額 | EL14: 工種コード | EP14: 要素コード | EV14: 備 考
C15: 現契約金額 | BC15: =IF(AP15="","",ROUND(AP15*AW15,0)) ->  | CD15: 現契約金額 | CI15: 100000000 | CV15: 4 | CW15: 30 | CX15: 第２回 出来高 | DQ15: 1 | DU15: 式 | ED15: 10000000
C16: 増 減 金 額 | BC16: =IF(AP16="","",ROUND(AP16*AW16,0)) ->  | CD16: 増 減 金 額 | CI16: 10000000 | CX16: ↑ ※出来高請求の場合
C17: 合 計 | H17: =SUM(H15:S16) -> 0 | CD17: 合 計 | CI17: =SUM(CI15:CT16) -> 110000000
A19: 【税抜金額合計】 (a) | L19: =SUM(L20:S22) -> 0 | CB19: 【税抜金額合計】 (a) | CM19: =SUM(CM20:CT22) -> 10000000
C20: 非課税対象 | L20: =SUM(FP24,請求内訳書P2!CO26,請求内訳書P3!CO26,請求内訳書P4!CO26) -> 0 | CD20: 非課税対象 | CM20: 0 | CV20: 4 | CW20: 30 | CX20: 別紙明細書の通り | DN20: 非 | DQ20: 1 | DU20: 式 | ED20: 1000000
C21: ※ ８％対象 | L21: =SUM(FP25,請求内訳書P2!CO27,請求内訳書P3!CO27,請求内訳書P4!CO27) -> 0 | CD21: ※ ８％対象 | CM21: 0 | CX21: 〃 | DN21: ※ | DQ21: 1 | DU21: 式 | ED21: 1000000 | FE21: [●計算用項目]
C22: １０％対象 | L22: =SUM(FP26,請求内訳書P2!CO28,請求内訳書P3!CO28,請求内訳書P4!CO28) -> 0 | CD22: １０％対象 | CM22: 10000000 | CX22: 〃 | DQ22: 1 | DU22: 式 | ED22: 1000000
CX23: ↑ ※明細書を添付する場合 | FE23: 【税抜金額合計】 (a) | FP23: =SUM(FP24:FW26) -> 0
A24: 【消費税金額合計】(b) | L24: =SUM(L25:S27) -> 0 | CB24: 【消費税金額合計】(b) | CM24: =SUM(CM25:CT27) -> 1000000 | FG24: 非課税対象 | FP24: =SUMIF($AM$15:$AO$26,"非",$BC$15:$BJ$26) -> 0
C25: 非 課 税 | L25: 0 | CD25: 非 課 税 | CM25: 0 | FG25: ※ ８％対象 | FP25: =SUMIF($AM$15:$AO$26,"※",$BC$15:$BJ$26) -> 0
C26: ※８％対象消費税 | L26: =ROUND(L21*0.08,0) -> 0 | CD26: ※８％対象消費税 | CM26: =ROUND(CM21*0.08,0) -> 0 | FG26: １０％対象 | FP26: =SUMIF($AM$15:$AO$26,"",$BC$15:$BJ$26) -> 0
C27: １０％対象消費税 | L27: =ROUND(L22*0.1,0) -> 0 | U27: =IF(請求内訳書P2!BC9="","税抜金額合計(a)","税抜金額小計") -> 税抜金額合計(a) | BC27: =IF(BC15="","",SUM(BC15:BJ26)) ->  | BK27: ※ 軽減税率対象項目 | CD27: １０％対象消費税 | CM27: =ROUND(CM22*0.1,0) -> 1000000 | CV27: 税抜金額合計(a) | ED27: =IF(ED15="","",SUM(ED15:EK26)) -> 13000000 | EL27: ※ 軽減税率対象項目
AN28: 役 員 | AX28: 管 理 部 | BM28: 施工部長 | BR28: 現 場
A29: 【提 出 用】
AF31: 請 求 書 | AS31: （ | AV31: 外注請求分 | BD31: 一般請求分 | BJ31: ） | BM31: =IF(BM4="","",BM4) ->  | BR31: 年 | BT31: =IF(BT4="","",BT4) ->  | BV31: 月 | BX31: =IF(BX4="","",BX4) ->  | BZ31: 日
A33: =A6 -> 株式会社堀内組 | Q33: 御中 | U33: 取引先 コード | Z33: =IF(Z6="","",Z6) -> 0 | AA33: =IF(AA6="","",AA6) ->  | AV33: 適格請求書 発行事業所 | BD33: 登録済（下記に登録番号を記入） | BU33: 未登録
U34: 郵便番号 | Z34: =IF(Z7="","",Z7) ->  | AC34: － | AV34: 登録番号 | BB34: =IF(BB7="","",BB7) -> Ｔ | BC34: =IF(BC7="","",BC7) ->  | BD34: － | BE34: =IF(BE7="","",BE7) ->  | BI34: － | BJ34: =IF(BJ7="","",BJ7) ->  | BN34: － | BO34: =IF(BO7="","",BO7) -> 
A35: 下記のとおり、御請求申し上げます。 | U35: 住所 | Z35: =IF(Z8="","",Z8) ->  | AV35: 銀 行 名 | BB35: =IF(BB8="","",BB8) ->  | BI35: =IF(BI8="","",BI8) -> 銀行 | BL35: 支 店 名 | BR35: =IF(BR8="","",BR8) ->  | BY35: =IF(BY8="","",BY8) -> 支店
A36: 税抜金額 （ａ） | H36: =H9 -> 0 | U36: 会社名 | Z36: =IF(Z9="","",Z9) ->  | AS36: ㊞ | AV36: 預金種別 | BD36: 普通 | BI36: 当座 | BL36: 口座番号 | BR36: =IF(BR9="","",BR9) -> 
A37: 消費税額 （ｂ） | H37: =H10 -> 0 | U37: 代表者名 | Z37: =IF(Z10="","",Z10) ->  | AV37: （フリガナ） 口座名義 | BB37: =IF(BB10="","",BB10) -> 
A38: [税込金額] | H38: =H11 -> 0 | U38: 電話番号 | BB38: =IF(BB11="","",BB11) -> 
A40: 契約事項 | C40: 注 文 № | H40: =IF(H13="","",H13) ->  | I40: =IF(I13="","",I13) ->  | U40: 工事コード | Z40: =IF(Z13="","",Z13) ->  | AA40: =IF(AA13="","",AA13) ->  | AJ40: 工事名 | AP40: =IF(AP13="","",AP13) -> 
C41: 支 払 条 件 | H41: 現金 | K41: =IF(K14="","",K14) ->  | M41: ％ | N41: 手形 | Q41: =IF(Q14="","",Q14) ->  | S41: ％ | U41: 日付 | W41: 摘 要 | AM41: 税区分 | AP41: 数 量 | AT41: 単 位 | AW41: 単 価 | BC41: 税抜金額 | BK41: 工種コード | BO41: 要素コード | BU41: 備 考
C42: 現契約金額 | H42: =IF(H15="","",H15) ->  | U42: =IF(U15="","",U15) ->  | V42: =IF(V15="","",V15) ->  | W42: =IF(W15="","",W15) ->  | AM42: =IF(AM15="","",AM15) ->  | AP42: =IF(AP15="","",AP15) ->  | AT42: =IF(AT15="","",AT15) ->  | AW42: =IF(AW15="","",AW15) ->  | BC42: =IF(BC15="","",BC15) -> 
C43: 増 減 金 額 | H43: =IF(H16="","",H16) ->  | U43: =IF(U16="","",U16) ->  | AM43: =IF(AM16="","",AM16) ->  | AP43: =IF(AP16="","",AP16) ->  | AT43: =IF(AT16="","",AT16) ->  | AW43: =IF(AW16="","",AW16) ->  | BC43: =IF(BC16="","",BC16) -> 
C44: 合 計 | H44: 0
A46: 【税抜金額合計】 (a) | L46: =L19 -> 0
C47: 非課税対象 | L47: =L20 -> 0
C48: ※ ８％対象 | L48: 0
C49: １０％対象 | L49: 0
A51: 【消費税金額合計】(b) | L51: 0
C52: 非 課 税 | L52: 0
C53: ※８％対象消費税 | L53: 0
C54: １０％対象消費税 | L54: 0 | U54: =U27 -> 税抜金額合計(a) | BK54: ※ 軽減税率対象項目

Sheet 請求内訳書P2
A2: 【取引先控】
BC3: 会社名 | BI3: =IF(協力業者発行請求書P1!Z9="","",協力業者発行請求書P1!Z9) -> 
AS4: FALSE | BB4: FALSE
AF5: 請求内訳書 | AS5: （ | AV5: 外注請求分 | BD5: 一般請求分 | BJ5: ） | BM5: =IF(協力業者発行請求書P1!BM4="","",協力業者発行請求書P1!BM4) ->  | BR5: 年 | BT5: =IF(協力業者発行請求書P1!BT4="","",協力業者発行請求書P1!BT4) ->  | BV5: 月 | BX5: =IF(協力業者発行請求書P1!BX4="","",協力業者発行請求書P1!BX4) ->  | BZ5: 日
U7: 工事コード | Z7: =IF(協力業者発行請求書P1!Z13="","",協力業者発行請求書P1!Z13) ->  | AA7: =IF(協力業者発行請求書P1!AA13="","",協力業者発行請求書P1!AA13) ->  | AB7: =IF(協力業者発行請求書P1!AB13="","",協力業者発行請求書P1!AB13) ->  | AC7: =IF(協力業者発行請求書P1!AC13="","",協力業者発行請求書P1!AC13) ->  | AD7: =IF(協力業者発行請求書P1!AD13="","",協力業者発行請求書P1!AD13) ->  | AE7: =IF(協力業者発行請求書P1!AE13="","",協力業者発行請求書P1!AE13) ->  | AF7: =IF(協力業者発行請求書P1!AF13="","",協力業者発行請求書P1!AF13) ->  | AG7: =IF(協力業者発行請求書P1!AG13="","",協力業者発行請求書P1!AG13) ->  | AH7: =IF(協力業者発行請求書P1!AH13="","",協力業者発行請求書P1!AH13) ->  | AI7: =IF(協力業者発行請求書P1!AI13="","",協力業者発行請求書P1!AI13) ->  | AJ7: 工事名 | AP7: =IF(協力業者発行請求書P1!AP13="","",協力業者発行請求書P1!AP13) -> 
U8: 日付 | W8: 摘 要 | AM8: 税区分 | AP8: 数 量 | AT8: 単 位 | AW8: 単 価 | BC8: 税抜金額 | BK8: 工種コード | BO8: 要素コード | BU8: 備 考
BC9: =IF(AP9="","",ROUND(AP9*AW9,0)) -> 
BC10: =IF(AP10="","",ROUND(AP10*AW10,0)) -> 
CD23: [●計算用項目]
CD25: 【税抜金額合計】 (a) | CO25: =SUM(CO26:CV28) -> 0
CF26: 非課税対象 | CO26: =SUMIF($AM$9:$AO$26,"非",$BC$9:$BJ$26) -> 0
U27: 税抜金額小計 | BC27: =IF(BC9="","",SUM(BC9:BJ26)) ->  | CF27: ※ ８％対象 | CO27: =SUMIF($AM$9:$AO$26,"※",$BC$9:$BJ$26) -> 0
U28: 税抜金額合計(a) | BC28: =IF(請求内訳書P3!BC9="",SUM(協力業者発行請求書P1!BC27,請求内訳書P2!BC27),"") -> 0 | BK28: ※ 軽減税率対象項目 | CF28: １０％対象 | CO28: =SUMIF($AM$9:$AO$26,"",$BC$9:$BJ$26) -> 0
BY29: P2
A31: 【提 出 用】
BC32: 会社名 | BI32: =IF(BI3="","",BI3) -> 
AF34: 請求内訳書 | AS34: （ | AV34: 外注請求分 | BD34: 一般請求分 | BJ34: ） | BM34: =IF(BM5="","",BM5) ->  | BR34: 年 | BT34: =IF(BT5="","",BT5) ->  | BV34: 月 | BX34: =IF(BX5="","",BX5) ->  | BZ34: 日
U36: 工事コード | Z36: =IF(Z7="","",Z7) ->  | AA36: =IF(AA7="","",AA7) ->  | AJ36: 工事名 | AP36: =IF(AP7="","",AP7) -> 
U37: 日付 | W37: 摘 要 | AM37: 税区分 | AP37: 数 量 | AT37: 単 位 | AW37: 単 価 | BC37: 税抜金額 | BK37: 工種コード | BO37: 要素コード | BU37: 備 考
U38: =IF(U9="","",U9) ->  | V38: =IF(V9="","",V9) ->  | W38: =IF(W9="","",W9) ->  | AM38: =IF(AM9="","",AM9) ->  | AP38: =IF(AP9="","",AP9) ->  | AT38: =IF(AT9="","",AT9) ->  | AW38: =IF(AW9="","",AW9) ->  | BC38: =IF(BC9="","",BC9) -> 
U39: =IF(U10="","",U10) ->  | AM39: =IF(AM10="","",AM10) ->  | AP39: =IF(AP10="","",AP10) ->  | AT39: =IF(AT10="","",AT10) ->  | AW39: =IF(AW10="","",AW10) ->  | BC39: =IF(BC10="","",BC10) -> 
U55: =IF(U26="","",U26) -> 
U56: 税抜金額小計
U57: 税抜金額合計(a) | BC57: 0 | BK57: ※ 軽減税率対象項目
BY58: P2

Sheet 請求内訳書P3
A2: 【取引先控】
BC3: 会社名 | BI3: =IF(協力業者発行請求書P1!Z9="","",協力業者発行請求書P1!Z9) -> 
AS4: FALSE | BB4: FALSE
AF5: 請求内訳書 | AS5: （ | AV5: 外注請求分 | BD5: 一般請求分 | BJ5: ） | BM5: =IF(協力業者発行請求書P1!BM4="","",協力業者発行請求書P1!BM4) ->  | BR5: 年 | BT5: =IF(協力業者発行請求書P1!BT4="","",協力業者発行請求書P1!BT4) ->  | BV5: 月 | BX5: =IF(協力業者発行請求書P1!BX4="","",協力業者発行請求書P1!BX4) ->  | BZ5: 日
U7: 工事コード | Z7: =IF(協力業者発行請求書P1!Z13="","",協力業者発行請求書P1!Z13) ->  | AA7: =IF(協力業者発行請求書P1!AA13="","",協力業者発行請求書P1!AA13) ->  | AB7: =IF(協力業者発行請求書P1!AB13="","",協力業者発行請求書P1!AB13) ->  | AC7: =IF(協力業者発行請求書P1!AC13="","",協力業者発行請求書P1!AC13) ->  | AD7: =IF(協力業者発行請求書P1!AD13="","",協力業者発行請求書P1!AD13) ->  | AE7: =IF(協力業者発行請求書P1!AE13="","",協力業者発行請求書P1!AE13) ->  | AF7: =IF(協力業者発行請求書P1!AF13="","",協力業者発行請求書P1!AF13) ->  | AG7: =IF(協力業者発行請求書P1!AG13="","",協力業者発行請求書P1!AG13) ->  | AH7: =IF(協力業者発行請求書P1!AH13="","",協力業者発行請求書P1!AH13) ->  | AI7: =IF(協力業者発行請求書P1!AI13="","",協力業者発行請求書P1!AI13) ->  | AJ7: 工事名 | AP7: =IF(協力業者発行請求書P1!AP13="","",協力業者発行請求書P1!AP13) -> 
U8: 日付 | W8: 摘 要 | AM8: 税区分 | AP8: 数 量 | AT8: 単 位 | AW8: 単 価 | BC8: 税抜金額 | BK8: 工種コード | BO8: 要素コード | BU8: 備 考
BC9: =IF(AP9="","",ROUND(AP9*AW9,0)) -> 
CD23: [●計算用項目]
CD25: 【税抜金額合計】 (a) | CO25: =SUM(CO26:CV28) -> 0
CF26: 非課税対象 | CO26: =SUMIF($AM$9:$AO$26,"非",$BC$9:$BJ$26) -> 0
U27: 税抜金額小計 | BC27: =IF(BC9="","",SUM(BC9:BJ26)) ->  | CF27: ※ ８％対象 | CO27: =SUMIF($AM$9:$AO$26,"※",$BC$9:$BJ$26) -> 0
U28: 税抜金額合計(a) | BC28: =IF(請求内訳書P4!BC9="",SUM(協力業者発行請求書P1!BC27,請求内訳書P2!BC27,請求内訳書P3!BC27),"") -> 0 | BK28: ※ 軽減税率対象項目 | CF28: １０％対象 | CO28: =SUMIF($AM$9:$AO$26,"",$BC$9:$BJ$26) -> 0
BY29: P3
A31: 【提 出 用】
BC32: 会社名 | BI32: =IF(BI3="","",BI3) -> 
AF34: 請求内訳書 | AS34: （ | AV34: 外注請求分 | BD34: 一般請求分 | BJ34: ） | BM34: =IF(BM5="","",BM5) ->  | BR34: 年 | BT34: =IF(BT5="","",BT5) ->  | BV34: 月 | BX34: =IF(BX5="","",BX5) ->  | BZ34: 日
U36: 工事コード | Z36: =IF(Z7="","",Z7) ->  | AA36: =IF(AA7="","",AA7) ->  | AJ36: 工事名 | AP36: =IF(AP7="","",AP7) -> 
U37: 日付 | W37: 摘 要 | AM37: 税区分 | AP37: 数 量 | AT37: 単 位 | AW37: 単 価 | BC37: 税抜金額 | BK37: 工種コード | BO37: 要素コード | BU37: 備 考
U38: =IF(U9="","",U9) ->  | V38: =IF(V9="","",V9) ->  | W38: =IF(W9="","",W9) ->  | AM38: =IF(AM9="","",AM9) ->  | AP38: =IF(AP9="","",AP9) ->  | AT38: =IF(AT9="","",AT9) ->  | AW38: =IF(AW9="","",AW9) ->  | BC38: =IF(BC9="","",BC9) -> 
U39: =IF(U10="","",U10) ->  | AM39: =IF(AM10="","",AM10) ->  | AP39: =IF(AP10="","",AP10) ->  | AT39: =IF(AT10="","",AT10) ->  | AW39: =IF(AW10="","",AW10) ->  | BC39: =IF(BC10="","",BC10) -> 
U55: =IF(U26="","",U26) -> 
U56: 税抜金額小計
U57: 税抜金額合計(a) | BC57: 0 | BK57: ※ 軽減税率対象項目
BY58: P3

Sheet 請求内訳書P4
A2: 【取引先控】
BC3: 会社名 | BI3: =IF(協力業者発行請求書P1!Z9="","",協力業者発行請求書P1!Z9) -> 
AS4: FALSE | BB4: FALSE
AF5: 請求内訳書 | AS5: （ | AV5: 外注請求分 | BD5: 一般請求分 | BJ5: ） | BM5: =IF(協力業者発行請求書P1!BM4="","",協力業者発行請求書P1!BM4) ->  | BR5: 年 | BT5: =IF(協力業者発行請求書P1!BT4="","",協力業者発行請求書P1!BT4) ->  | BV5: 月 | BX5: =IF(協力業者発行請求書P1!BX4="","",協力業者発行請求書P1!BX4) ->  | BZ5: 日
U7: 工事コード | Z7: =IF(協力業者発行請求書P1!Z13="","",協力業者発行請求書P1!Z13) ->  | AA7: =IF(協力業者発行請求書P1!AA13="","",協力業者発行請求書P1!AA13) ->  | AB7: =IF(協力業者発行請求書P1!AB13="","",協力業者発行請求書P1!AB13) ->  | AC7: =IF(協力業者発行請求書P1!AC13="","",協力業者発行請求書P1!AC13) ->  | AD7: =IF(協力業者発行請求書P1!AD13="","",協力業者発行請求書P1!AD13) ->  | AE7: =IF(協力業者発行請求書P1!AE13="","",協力業者発行請求書P1!AE13) ->  | AF7: =IF(協力業者発行請求書P1!AF13="","",協力業者発行請求書P1!AF13) ->  | AG7: =IF(協力業者発行請求書P1!AG13="","",協力業者発行請求書P1!AG13) ->  | AH7: =IF(協力業者発行請求書P1!AH13="","",協力業者発行請求書P1!AH13) ->  | AI7: =IF(協力業者発行請求書P1!AI13="","",協力業者発行請求書P1!AI13) ->  | AJ7: 工事名 | AP7: =IF(協力業者発行請求書P1!AP13="","",協力業者発行請求書P1!AP13) -> 
U8: 日付 | W8: 摘 要 | AM8: 税区分 | AP8: 数 量 | AT8: 単 位 | AW8: 単 価 | BC8: 税抜金額 | BK8: 工種コード | BO8: 要素コード | BU8: 備 考
BC9: =IF(AP9="","",ROUND(AP9*AW9,0)) -> 
CD23: [●計算用項目]
CD25: 【税抜金額合計】 (a) | CO25: =SUM(CO26:CV28) -> 0
CF26: 非課税対象 | CO26: =SUMIF($AM$9:$AO$26,"非",$BC$9:$BJ$26) -> 0
U27: 税抜金額小計 | BC27: =IF(BC9="","",SUM(BC9:BJ26)) ->  | CF27: ※ ８％対象 | CO27: =SUMIF($AM$9:$AO$26,"※",$BC$9:$BJ$26) -> 0
U28: 税抜金額合計(a) | BC28: =SUM(協力業者発行請求書P1!BC27,請求内訳書P2!BC27,請求内訳書P3!BC27,請求内訳書P4!BC27) -> 0 | BK28: ※ 軽減税率対象項目 | CF28: １０％対象 | CO28: =SUMIF($AM$9:$AO$26,"",$BC$9:$BJ$26) -> 0
BY29: P4
A31: 【提 出 用】
BC32: 会社名 | BI32: =IF(BI3="","",BI3) -> 
AF34: 請求内訳書 | AS34: （ | AV34: 外注請求分 | BD34: 一般請求分 | BJ34: ） | BM34: =IF(BM5="","",BM5) ->  | BR34: 年 | BT34: =IF(BT5="","",BT5) ->  | BV34: 月 | BX34: =IF(BX5="","",BX5) ->  | BZ34: 日
U36: 工事コード | Z36: =IF(Z7="","",Z7) ->  | AA36: =IF(AA7="","",AA7) ->  | AJ36: 工事名 | AP36: =IF(AP7="","",AP7) -> 
U37: 日付 | W37: 摘 要 | AM37: 税区分 | AP37: 数 量 | AT37: 単 位 | AW37: 単 価 | BC37: 税抜金額 | BK37: 工種コード | BO37: 要素コード | BU37: 備 考
U38: =IF(U9="","",U9) ->  | V38: =IF(V9="","",V9) ->  | W38: =IF(W9="","",W9) ->  | AM38: =IF(AM9="","",AM9) ->  | AP38: =IF(AP9="","",AP9) ->  | AT38: =IF(AT9="","",AT9) ->  | AW38: =IF(AW9="","",AW9) ->  | BC38: =IF(BC9="","",BC9) -> 
U39: =IF(U10="","",U10) ->  | AM39: =IF(AM10="","",AM10) ->  | AP39: =IF(AP10="","",AP10) ->  | AT39: =IF(AT10="","",AT10) ->  | AW39: =IF(AW10="","",AW10) ->  | BC39: =IF(BC10="","",BC10) -> 
U55: =IF(U26="","",U26) -> 
U56: 税抜金額小計
U57: 税抜金額合計(a) | BC57: 0 | BK57: ※ 軽減税率対象項目
BY58: P4
